fUSD/lending_fUSD_20240523
["ID","MTS","AMOUNT","RATE_DAILY","PERIOD"]
[327778082,1716474787982,-2015.25,0.00023444,7]
[327778083,1716474788005,-683.73,0.00023444,7]
[327778084,1716474788028,-845.13,0.00023444,7]
[327778085,1716474788052,-500.0,0.00023445,4]
[327778087,1716474788076,-1730.38,0.00023445,4]
[327778088,1716474788099,-537.07,0.00023445,4]
[327778089,1716474788122,-500.0,0.00023445,4]
[327778090,1716474788146,-500.0,0.00023445,4]
[327778091,1716474788169,-500.0,0.00023445,4]
[327778092,1716474788192,-3200.06,0.00023445,4]
[327778093,1716474788217,-500.0,0.00023445,4]
[327778094,1716474788241,-770.97,0.00023445,4]
[327778095,1716474788264,-500.0,0.00023445,4]
[327778096,1716474788288,-622.8,0.00023445,4]
[327778097,1716474788312,-500.0,0.00023445,4]
[327778098,1716474788335,-500.0,0.00023445,4]
[327778099,1716474788359,-500.0,0.00023445,4]
[327778100,1716474788382,-500.0,0.00023445,4]
[327778101,1716474788406,-627.32,0.00023445,4]
[327778102,1716474788430,-699.03,0.00023445,4]
[327778103,1716474788457,-1069.0,0.00023445,4]
[327778104,1716474788482,-2235.12,0.00023445,4]
[327778105,1716474788506,-500.0,0.00023445,4]
[327778106,1716474788530,-644.86,0.00023445,4]
[327778107,1716474788553,-653.86,0.00023445,4]
[327778108,1716474788577,-500.0,0.00023445,4]
[327778109,1716474788603,-500.0,0.00023445,4]
[327778110,1716474788966,500.0,0.00023013,6]
[327778111,1716474789009,500.0,0.00022897,2]
[327778112,1716474789059,500.0,0.00023287,7]
[327778113,1716474789382,500.0,0.00023171,3]
[327778114,1716474789487,9156.94527158,0.00022,2]
[327778115,1716474789552,500.0,0.00023445,4]
[327778116,1716474789607,410.59513495,0.0002001,2]
[327778117,1716474789700,518.6905908,0.00022621,4]
[327778118,1716474790076,10000.0,0.00022447,2]
[327778119,1716474790271,500.0,0.00021999,2]
[327778120,1716474790336,2751.0,0.00021589,2]
[327778121,1716474790760,50000.0,0.00022074,2]
[327778122,1716474790791,247.93939549,0.00022498,2]
[327778123,1716474791136,576.59872633,0.00020247,2]
[327778124,1716474791190,3454.307,0.00022895,2]
[327778125,1716474791272,585.99193676,0.00022497,2]
[327778126,1716474791310,150.0,0.00019725,2]
[327778127,1716474791559,192.0,0.00021698,2]
[327778128,1716474791608,562.44983202,0.00021986,2]
[327778129,1716474792524,718.07397259,0.00021099,2]
[327778130,1716474792785,7236.0,0.0002,2]
[327778131,1716474793924,484.12169313,0.00022073,2]
[327778132,1716474793973,500.0,0.00022073,2]
[327778133,1716474794272,500.0,0.00022347,3]
[327778135,1716474794578,500.0,0.00022499,2]
[327778136,1716474794642,500.0,0.00022897,2]
[327778137,1716474794680,865.33,0.00022073,2]
[327778138,1716474794891,500.0,0.00022773,3]
[327778139,1716474794924,500.0,0.00022621,4]
[327778140,1716474794954,422.72728143,0.00023171,3]
[327778141,1716474794984,5566.93826705,0.00017259,2]
[327778142,1716474795019,865.33,0.00022347,3]
[327778143,1716474795173,500.0,0.00023047,4]
[327778144,1716474795206,500.0,0.00022895,5]
[327778145,1716474795238,500.0,0.00021917,2]
[327778146,1716474795274,865.33,0.00022621,4]
[327778147,1716474795370,500.0,0.00021999,2]
[327778148,1716474795401,5821.67,0.00021917,2]
[327778149,1716474795445,500.0,0.00022897,2]
[327778150,1716474795485,500.0,0.00022191,3]
[327778151,1716474795562,865.33,0.00022895,5]
[327778152,1716474795592,500.0,0.00023321,5]
[327778153,1716474795622,704.51,0.00022897,2]
[327778154,1716474795666,500.0,0.00022273,3]
[327778155,1716474795697,5821.67,0.00022191,3]
[327778156,1716474795773,500.0,0.00022465,4]
[327778157,1716474795805,500.0,0.00023169,6]
[327778158,1716474795848,865.33,0.00023169,6]
[327778159,1716474795892,704.51,0.00023171,3]
[327778160,1716474795968,5821.67,0.00022465,4]
[327778161,1716474796048,500.0,0.00023171,3]
[327778162,1716474796115,500.0,0.00023443,7]
[327778163,1716474796147,865.33,0.00023443,7]
[327778164,1716474796188,704.51,0.00023445,4]
[327778165,1716474796256,500.0,0.00022547,4]
[327778166,1716474796287,643.74818958,0.00017259,2]
[327778167,1716474796326,404.53278304,0.00023445,4]
[327778168,1716474796382,500.0,0.00022739,5]
[327778169,1716474796553,500.0,0.00022821,5]
[327778170,1716474796617,5821.67,0.00022739,5]
[327778171,1716474796700,500.0,0.00023013,6]
[327778172,1716474796820,500.0,0.00023095,6]
[327778173,1716474796981,500.0,0.00023287,7]
[327778174,1716474797048,500.0,0.00022073,2]
[327778175,1716474797175,5821.67,0.00023013,6]
[327778176,1716474797204,500.0,0.00023369,7]
[327778177,1716474797308,500.0,0.00022347,3]
[327778178,1716474797460,5821.67,0.00023287,7]
[327778179,1716474797909,500.0,0.00022621,4]
[327778180,1716474798245,500.0,0.00022895,5]
[327778181,1716474798543,500.0,0.00023169,6]
[327778182,1716474798683,655.62,0.00022073,2]
[327778183,1716474799231,655.62,0.00022347,3]
[327778184,1716474799274,500.0,0.00023443,7]
[327778185,1716474799306,500.0,0.00022897,2]
[327778186,1716474799335,655.62,0.00022621,4]
[327778187,1716474799520,500.0,0.00022897,2]
[327778188,1716474799569,655.62,0.00022895,5]
[327778189,1716474799786,506.30145912,0.00023171,3]
[327778190,1716474799906,603.4600962,0.00022073,2]
[327778191,1716474800036,655.62,0.00023169,6]
[327778192,1716474800453,1000.0,0.0003015,120]
[327778193,1716474800497,655.62,0.00023443,7]
[327778194,1716474800531,500.0,0.00021986,2]
[327778196,1716474801057,500.0,0.0002226,3]
[327778197,1716474801140,302.92095059,0.00022073,2]
[327778198,1716474801330,500.0,0.00022534,4]
[327778199,1716474801616,625.88467895,0.00022808,5]
[327778200,1716474802341,2005.18444528,0.000234,2]
[327778201,1716474803889,500.0,0.00021986,2]
[327778202,1716474804062,489.16139777,0.00017259,2]
[327778203,1716474804165,500.0,0.0002226,3]
[327778204,1716474804379,517.36,0.00022897,2]
[327778205,1716474804512,500.0,0.00022534,4]
[327778206,1716474804757,517.36,0.00023171,3]
[327778207,1716474804787,500.0,0.00022808,5]
[327778208,1716474805022,519.54204067,0.00023082,6]
[327778209,1716474805066,517.36,0.00023445,4]
[327778210,1716474805496,500.0,0.00021917,2]
[327778211,1716474805622,500.0,0.00021986,2]
[327778212,1716474805677,584.61,0.00022073,2]
[327778213,1716474805846,500.0,0.00022191,3]
[327778214,1716474805904,500.0,0.0002226,3]
[327778215,1716474805967,584.61,0.00022347,3]
[327778216,1716474806181,500.0,0.00022534,4]
[327778217,1716474806247,584.61,0.00022621,4]
[327778218,1716474806410,344.66778136,0.00017259,2]
[327778219,1716474806441,500.0,0.00022808,5]
[327778220,1716474806556,584.61,0.00022895,5]
[327778221,1716474806730,500.0,0.00023082,6]
[327778222,1716474806800,500.0,0.00022465,4]
[327778223,1716474806839,584.61,0.00023169,6]
[327778224,1716474807065,500.0,0.00023356,7]
[327778225,1716474807093,500.0,0.00022739,5]
[327778226,1716474807167,584.61,0.00023443,7]
[327778227,1716474807369,500.0,0.00023013,6]
[327778228,1716474807621,500.0,0.00023287,7]
[327778229,1716474809050,718.07397259,0.00021596,2]
[327778230,1716474809558,500.0,0.00022073,2]
[327778231,1716474809636,795.16,0.00022073,2]
[327778232,1716474809732,500.0,0.00021986,2]
[327778233,1716474809912,795.16,0.00022347,3]
[327778234,1716474809991,515.0995509,0.0002226,3]
[327778235,1716474810070,500.0,0.00022347,3]
[327778236,1716474810141,500.0,0.00022499,2]
[327778237,1716474810192,500.0,0.00022897,2]
[327778238,1716474810248,795.16,0.00022621,4]
[327778239,1716474810618,500.0,0.00022621,4]
[327778240,1716474810679,500.0,0.00022773,3]
[327778241,1716474810733,795.16,0.00022895,5]
[327778242,1716474810784,500.0,0.00022895,5]
[327778243,1716474810841,500.0,0.00023047,4]
[327778244,1716474810887,795.16,0.00023169,6]
[327778245,1716474810943,500.0,0.00023169,6]
[327778246,1716474811001,500.0,0.00023321,5]
[327778247,1716474811048,795.16,0.00023443,7]
[327778248,1716474811229,500.0,0.00023443,7]
[327778249,1716474811433,1988.0,0.000183,2]
[327778250,1716474811512,515.76354169,0.00021986,2]
[327778251,1716474813115,518.52279639,0.00022073,2]
[327778252,1716474813797,487.22,0.00022794,2]
[327778253,1716474814052,500.0,0.00021986,2]
[327778254,1716474814171,500.0,0.00022073,2]
[327778255,1716474814376,500.0,0.0002226,3]
[327778256,1716474814519,500.0,0.00022347,3]
[327778257,1716474814646,500.0,0.00022534,4]
[327778258,1716474814689,801.0,0.000219,2]
[327778259,1716474814842,500.0,0.00022621,4]
[327778260,1716474814943,500.0,0.00022808,5]
[327778261,1716474815136,500.0,0.00022895,5]
[327778262,1716474815236,353.6907247,0.00023082,6]
[327778263,1716474815406,500.0,0.00023169,6]
[327778264,1716474815979,500.0,0.00021917,2]
[327778265,1716474816024,500.0,0.00023443,7]
[327778266,1716474816172,500.0,0.00022897,2]
[327778267,1716474816220,511.57103921,0.00022073,2]
[327778268,1716474816473,1487.47,0.00022073,2]
[327778269,1716474816521,500.0,0.00023171,3]
[327778270,1716474816565,500.0,0.00022191,3]
[327778271,1716474816738,1487.47,0.00022347,3]
[327778272,1716474816846,500.0,0.00022465,4]
[327778273,1716474817008,500.0,0.00022897,2]
[327778274,1716474817133,500.0,0.00023445,4]
[327778275,1716474817184,500.0,0.00022739,5]
[327778276,1716474817369,1487.47,0.00022621,4]
[327778277,1716474817429,500.0,0.00022897,2]
[327778278,1716474817488,500.0,0.00023013,6]
[327778279,1716474817652,720.97,0.00021999,2]
[327778280,1716474817694,1487.47,0.00022895,5]
[327778281,1716474817759,500.0,0.00023171,3]
[327778282,1716474817803,500.0,0.00023287,7]
[327778283,1716474817907,500.0,0.00021986,2]
[327778284,1716474817970,720.97,0.00022273,3]
[327778285,1716474818017,500.0,0.00023445,4]
[327778286,1716474818169,519.44,0.00022073,2]
[327778287,1716474818215,470.45652158,0.0002226,3]
[327778288,1716474818266,720.97,0.00022547,4]
[327778289,1716474818358,1487.47,0.00023169,6]
[327778290,1716474818647,1487.47,0.00023443,7]
[327778291,1716474818793,519.44,0.00022347,3]
[327778292,1716474819012,720.97,0.00022821,5]
[327778293,1716474819070,519.44,0.00022621,4]
[327778294,1716474819146,1675.35,0.00022897,2]
[327778295,1716474819288,504.47748818,0.00022073,2]
[327778296,1716474819347,720.97,0.00023095,6]
[327778297,1716474819403,519.44,0.00022895,5]
[327778298,1716474819473,1675.35,0.00023171,3]
[327778299,1716474820194,720.97,0.00023369,7]
[327778300,1716474820253,519.44,0.00023169,6]
[327778301,1716474820317,1167.86,0.00022073,2]
[327778302,1716474820525,519.44,0.00023443,7]
[327778303,1716474820586,1675.35,0.00023445,4]
[327778304,1716474820667,2005.18444528,0.000234,2]
[327778305,1716474820721,1167.86,0.00022347,3]
[327778306,1716474821126,1167.86,0.00022621,4]
[327778307,1716474821435,1167.86,0.00022895,5]
[327778308,1716474823428,517.49905502,0.00022073,2]
[327778309,1716474823581,718.07397259,0.00021596,2]
[327778310,1716474823670,558.09,0.00021986,2]
[327778311,1716474823741,500.0,0.00022073,2]
[327778312,1716474823820,1167.86,0.00023169,6]
[327778313,1716474823877,558.09,0.0002226,3]
[327778314,1716474823940,500.0,0.00021917,2]
[327778315,1716474823994,500.0,0.00022347,3]
[327778316,1716474824055,558.09,0.00022534,4]
[327778317,1716474824121,500.0,0.00022499,2]
[327778318,1716474824186,500.0,0.00022191,3]
[327778319,1716474824244,558.09,0.00022808,5]
[327778320,1716474824307,529.38428407,0.00022773,3]
[327778321,1716474824381,200241.79148128,0.00013,2]
[327778322,1716474824691,558.09,0.00023082,6]
[327778323,1716474824766,1000.0,0.00022365,2]
[327778324,1716474825009,1167.86,0.00023443,7]
[327778325,1716474825346,558.09,0.00023356,7]
[327778326,1716474826207,500.0,0.00021917,2]
[327778327,1716474826507,801.78,0.00022499,2]
[327778328,1716474826791,801.78,0.00022773,3]
[327778329,1716474827075,801.78,0.00023047,4]
[327778330,1716474827375,801.78,0.00023321,5]
[327778331,1716474828001,633.51,0.00022897,2]
[327778332,1716474828174,500.0,0.00022191,3]
[327778333,1716474828285,520.74030669,0.00021986,2]
[327778334,1716474828337,633.51,0.00023171,3]
[327778335,1716474828454,500.0,0.00022465,4]
[327778336,1716474828592,633.51,0.00023445,4]
[327778337,1716474828776,500.0,0.00022739,5]
[327778338,1716474828831,500.0,0.00022073,2]
[327778339,1716474829078,500.0,0.00023013,6]
[327778340,1716474829219,500.0,0.00022073,2]
[327778341,1716474829369,500.0,0.00023287,7]
[327778342,1716474829513,631.76568313,0.00022347,3]
[327778343,1716474829565,500.0,0.00022347,3]
[327778344,1716474829803,500.0,0.00022621,4]
[327778345,1716474830125,500.0,0.00022895,5]
[327778346,1716474830749,500.0,0.00021999,2]
[327778347,1716474830803,500.0,0.00023169,6]
[327778348,1716474831001,338.1055198,0.00023443,7]
[327778349,1716474831329,500.0,0.00022273,3]
[327778350,1716474831631,500.0,0.00022547,4]
[327778351,1716474831896,500.0,0.00022073,2]
[327778352,1716474831945,500.0,0.00022821,5]
[327778353,1716474832201,507.75339236,0.00022347,3]
[327778354,1716474832251,500.0,0.00023095,6]
[327778355,1716474832535,500.0,0.00023369,7]
[327778356,1716474833333,500.0,0.00021986,2]
[327778357,1716474833531,500.0,0.00021917,2]
[327778358,1716474833626,522.5878479,0.0002226,3]
[327778359,1716474834190,500.0,0.00022191,3]
[327778360,1716474834500,500.0,0.00022465,4]
[327778361,1716474834780,266.30162847,0.00022739,5]
[327778362,1716474834882,500.0,0.00022073,2]
[327778363,1716474834991,19647.0,0.00022,2]
[327778364,1716474836129,500.0,0.00022347,3]
[327778365,1716474836295,500.0,0.00021986,2]
[327778366,1716474836403,2005.18444528,0.000234,2]
[327778367,1716474836451,408.15268102,0.00022621,4]
[327778368,1716474836574,500.0,0.0002226,3]
[327778369,1716474836834,500.0,0.00022534,4]
[327778370,1716474836886,500.0,0.00022897,2]
[327778371,1716474837125,500.0,0.00022073,2]
[327778372,1716474837176,500.0,0.00023171,3]
[327778373,1716474837230,500.0,0.00022808,5]
[327778374,1716474837428,500.0,0.00022347,3]
[327778375,1716474837482,500.0,0.00023445,4]
[327778376,1716474837535,7500.0,0.00022365,2]
[327778377,1716474837587,500.0,0.00023082,6]
[327778378,1716474837730,500.0,0.00022621,4]
[327778379,1716474837952,2242.29,0.00022499,2]
[327778380,1716474838008,500.0,0.00022895,5]
[327778381,1716474838081,500.0,0.00023356,7]
[327778382,1716474838227,2242.29,0.00022773,3]
[327778383,1716474838283,500.0,0.00023169,6]
[327778384,1716474838374,500.0,0.00022897,2]
[327778385,1716474838513,2242.29,0.00023047,4]
[327778386,1716474838571,500.0,0.00023443,7]
[327778387,1716474838795,2242.29,0.00023321,5]
[327778388,1716474838984,500.0,0.00023171,3]
[327778389,1716474839096,500.0,0.00021986,2]
[327778390,1716474839260,500.0,0.00023445,4]
[327778391,1716474839370,500.0,0.0002226,3]
[327778392,1716474839688,1205.22,0.00022897,2]
[327778393,1716474839742,173.19635359,0.00022534,4]
[327778394,1716474840036,1205.22,0.00023171,3]
[327778395,1716474840216,500.0,0.00022073,2]
[327778396,1716474840325,1205.22,0.00023445,4]
[327778397,1716474840381,1055.76,0.00022073,2]
[327778398,1716474840640,1055.76,0.00022347,3]
[327778399,1716474841339,500.0,0.00022347,3]
[327778400,1716474841415,718.07397259,0.00021592,2]
[327778401,1716474841487,500.0,0.00022621,4]
[327778402,1716474841561,1055.76,0.00022621,4]
[327778403,1716474841643,500.0,0.00022073,2]
[327778404,1716474841784,500.0,0.00022895,5]
[327778405,1716474841910,1055.76,0.00022895,5]
[327778406,1716474841962,507.72756383,0.00022347,3]
[327778407,1716474842025,500.0,0.00023169,6]
[327778408,1716474842085,1055.76,0.00023169,6]
[327778409,1716474842152,500.0,0.00023443,7]
[327778410,1716474842432,1055.76,0.00023443,7]
[327778411,1716474842931,1632.94,0.00022073,2]
[327778412,1716474843462,200.0,0.00022744,2]
[327778413,1716474843569,1632.94,0.00022347,3]
[327778414,1716474843929,500.0,0.00022897,2]
[327778415,1716474844331,1632.94,0.00022621,4]
[327778416,1716474844630,1632.94,0.00022895,5]
[327778417,1716474844933,658.27,0.00022897,2]
[327778418,1716474845010,1632.94,0.00023169,6]
[327778419,1716474845062,506.2136138,0.00021986,2]
[327778420,1716474845228,658.27,0.00023171,3]
[327778421,1716474845317,1632.94,0.00023443,7]
[327778422,1716474845687,516.03963127,0.00022073,2]
[327778423,1716474845789,658.27,0.00023445,4]
[327778424,1716474845921,1343.36,0.00022074,2]
[327778425,1716474846189,500.0,0.00022073,2]
[327778426,1716474846386,1343.36,0.00022348,3]
[327778427,1716474846808,500.0,0.00022347,3]
[327778428,1716474847042,1343.36,0.00022622,4]
[327778429,1716474847095,500.0,0.00022621,4]
[327778430,1716474847269,1343.36,0.00022896,5]
[327778431,1716474847330,500.0,0.00022895,5]
[327778432,1716474847451,500.0,0.00022897,2]
[327778433,1716474847517,771.13,0.00022073,2]
[327778434,1716474847582,1343.36,0.0002317,6]
[327778435,1716474847633,500.0,0.00021917,2]
[327778436,1716474847701,500.0,0.00023171,3]
[327778437,1716474847761,771.13,0.00022347,3]
[327778438,1716474847898,500.0,0.00022191,3]
[327778439,1716474847951,1343.36,0.00023444,7]
[327778440,1716474848011,500.0,0.00023169,6]
[327778441,1716474848068,771.13,0.00022621,4]
[327778442,1716474848145,500.0,0.00022465,4]
[327778443,1716474848213,500.0,0.00023443,7]
[327778444,1716474848353,771.13,0.00022895,5]
[327778445,1716474848521,500.0,0.00023445,4]
[327778446,1716474848635,500.0,0.00022739,5]
[327778447,1716474848684,771.13,0.00023169,6]
[327778448,1716474849142,500.0,0.00023013,6]
[327778449,1716474849198,771.13,0.00023443,7]
[327778450,1716474849265,500.0,0.00023287,7]
[327778451,1716474849441,244.057774,0.00022897,2]
[327778452,1716474851001,500.0,0.00022073,2]
[327778453,1716474851671,500.0,0.00021917,2]
[327778454,1716474851953,500.0,0.00022191,3]
[327778455,1716474852111,500.0,0.00021999,2]
[327778456,1716474852185,500.0,0.00021917,2]
[327778457,1716474852399,500.0,0.00022273,3]
[327778458,1716474852478,500.0,0.00022191,3]
[327778459,1716474852572,500.0,0.00022465,4]
[327778460,1716474852677,500.0,0.00022547,4]
[327778461,1716474852762,500.0,0.00022465,4]
[327778462,1716474852839,500.0,0.00022739,5]
[327778463,1716474852983,500.0,0.00022821,5]
[327778464,1716474853041,500.0,0.00022739,5]
[327778465,1716474853114,500.0,0.00022073,2]
[327778466,1716474853212,295.29896363,0.00023013,6]
[327778467,1716474853291,500.0,0.00023095,6]
[327778468,1716474853345,500.0,0.00023013,6]
[327778469,1716474853399,500.0,0.00022347,3]
[327778470,1716474853572,500.0,0.00023369,7]
[327778471,1716474853625,500.0,0.00023287,7]
[327778472,1716474853730,500.0,0.00022897,2]
[327778473,1716474854036,500.0,0.00023171,3]
[327778474,1716474854313,500.0,0.00023445,4]
[327778475,1716474854400,873.78,0.00022073,2]
[327778476,1716474854678,378.30951817,0.00017259,2]
[327778477,1716474854728,873.78,0.00022347,3]
[327778478,1716474855310,873.78,0.00022621,4]
[327778479,1716474855450,508.96059178,0.00022073,2]
[327778480,1716474855674,500.0,0.00022621,4]
[327778481,1716474855913,873.78,0.00022895,5]
[327778482,1716474855975,614.3,0.00021986,2]
[327778483,1716474856025,500.0,0.00022895,5]
[327778484,1716474856229,614.3,0.0002226,3]
[327778485,1716474856284,500.0,0.00023169,6]
[327778486,1716474856347,500.0,0.00022897,2]
[327778487,1716474856399,500.0,0.00021986,2]
[327778488,1716474856456,2005.18444528,0.000234,2]
[327778489,1716474856588,873.78,0.00023169,6]
[327778490,1716474856638,614.3,0.00022534,4]
[327778491,1716474856689,500.0,0.00023443,7]
[327778492,1716474856748,513.26781641,0.0002226,3]
[327778493,1716474856829,614.3,0.00022808,5]
[327778494,1716474856884,500.0,0.00023171,3]
[327778495,1716474856934,873.78,0.00023443,7]
[327778496,1716474856986,718.07397259,0.00021592,2]
[327778497,1716474857094,169.93295086,0.00023445,4]
[327778498,1716474857449,614.3,0.00023082,6]
[327778499,1716474857505,565.7,0.00022499,2]
[327778500,1716474858068,614.3,0.00023356,7]
[327778501,1716474858146,565.7,0.00022773,3]
[327778502,1716474858220,500.0,0.00022073,2]
[327778503,1716474858328,500.0,0.00021917,2]
[327778504,1716474858382,565.7,0.00023047,4]
[327778505,1716474858487,500.0,0.00022347,3]
[327778506,1716474858727,565.7,0.00023321,5]
[327778507,1716474858784,500.0,0.00022621,4]
[327778508,1716474859068,500.0,0.00022895,5]
[327778509,1716474859701,605.04981825,0.00023169,6]
[327778510,1716474859748,500.0,0.00022897,2]
[327778511,1716474860030,500.0,0.00023171,3]
[327778512,1716474860100,512.34622888,0.00021917,2]
[327778513,1716474860219,500.0,0.00022897,2]
[327778514,1716474860282,500.0,0.00023445,4]
[327778515,1716474860332,499.96737878,0.00022897,2]
[327778516,1716474860509,500.0,0.00023171,3]
[327778517,1716474860786,500.0,0.00022897,2]
[327778518,1716474860835,500.0,0.00023445,4]
[327778519,1716474860893,1611.88,0.00021999,2]
[327778520,1716474861084,500.0,0.00023171,3]
[327778521,1716474861144,1611.88,0.00022273,3]
[327778522,1716474861350,500.0,0.00023445,4]
[327778523,1716474861424,1611.88,0.00022547,4]
[327778524,1716474862055,1611.88,0.00022821,5]
[327778525,1716474862272,509.65368654,0.00021986,2]
[327778526,1716474862323,1611.88,0.00023095,6]
[327778527,1716474862423,500.0,0.00022073,2]
[327778528,1716474862560,500.0,0.00021917,2]
[327778529,1716474862619,1611.88,0.00023369,7]
[327778530,1716474862701,517.47419838,0.00022347,3]
[327778531,1716474862816,500.0,0.00022191,3]
[327778532,1716474863086,500.0,0.00022465,4]
[327778533,1716474863352,500.0,0.00022073,2]
[327778534,1716474863401,500.0,0.00022739,5]
[327778535,1716474863627,500.0,0.00023013,6]
[327778536,1716474863949,500.0,0.00022347,3]
[327778537,1716474864059,500.0,0.00023287,7]
[327778538,1716474864369,500.0,0.00022621,4]
[327778539,1716474864633,205.21009177,0.00022895,5]
[327778540,1716474864807,500.0,0.00021986,2]
[327778541,1716474865100,500.0,0.0002226,3]
[327778542,1716474865350,511.93216236,0.00022534,4]
[327778543,1716474865452,510.01122468,0.00022073,2]
[327778544,1716474865843,500.0,0.00021917,2]
[327778545,1716474866150,588.88,0.00022073,2]
[327778546,1716474866449,588.88,0.00022347,3]
[327778547,1716474866729,588.88,0.00022621,4]
[327778548,1716474867015,553.0619203,0.00022897,2]
[327778549,1716474867072,588.88,0.00022895,5]
[327778550,1716474867490,588.88,0.00023169,6]
[327778551,1716474867690,588.88,0.00023443,7]
[327778552,1716474867784,500.0,0.00022073,2]
[327778553,1716474868036,500.0,0.00022347,3]
[327778554,1716474868133,500.0,0.00022073,2]
[327778555,1716474868263,500.0,0.00021986,2]
[327778556,1716474868317,500.0,0.00022621,4]
[327778557,1716474868444,500.0,0.00022347,3]
[327778558,1716474868494,500.0,0.00022073,2]
[327778559,1716474868579,500.0,0.00022895,5]
[327778560,1716474868702,500.0,0.00022347,3]
[327778561,1716474868752,500.0,0.00022621,4]
[327778562,1716474868809,500.0,0.00022897,2]
[327778563,1716474868859,500.0,0.00023169,6]
[327778564,1716474868908,500.0,0.0002226,3]
[327778565,1716474868964,500.0,0.00022621,4]
[327778566,1716474869023,500.0,0.00022895,5]
[327778567,1716474869074,500.0,0.00023171,3]
[327778568,1716474869125,500.0,0.00023443,7]
[327778569,1716474869172,500.0,0.00022534,4]
[327778570,1716474869250,500.0,0.00022895,5]
[327778571,1716474869327,500.0,0.00023169,6]
[327778572,1716474869446,500.0,0.00022808,5]
[327778573,1716474869517,500.0,0.00023169,6]
[327778574,1716474869683,500.0,0.00023445,4]
[327778575,1716474869742,500.0,0.00023082,6]
[327778576,1716474869792,500.0,0.00023443,7]
[327778577,1716474869936,500.0,0.00023443,7]
[327778578,1716474870028,2128.09,0.00022897,2]
[327778579,1716474870077,500.0,0.00021986,2]
[327778580,1716474870308,500.0,0.0002226,3]
[327778581,1716474870588,500.0,0.00022534,4]
[327778582,1716474870641,2128.09,0.00023171,3]
[327778583,1716474870867,500.0,0.00022808,5]
[327778584,1716474870952,2128.09,0.00023445,4]